[Event "Early-Titled-Tuesday-Blitz-May-14-2024"]
[Site "Chess.com"]
[Date "2024.05.14"]
[Round "9"]
[White "Makswolf200817"]
[Black "Kunalm64"]
[Result "1-0"]
[WhiteElo "2782"]
[BlackElo "2613"]
[TimeControl "180+1"]
[EndTime "9:47:08 PDT"]
[Termination "Makswolf200817 won by checkmate"]

1. e4 {[%clk 0:03:00.9]} 1... c5 {[%clk 0:02:56.4]} 2. Nf3 {[%clk 0:03:00.2]}
2... d6 {[%clk 0:02:56.3]} 3. d4 {[%clk 0:02:59.5]} 3... Nf6 {[%clk 0:02:55.9]}
4. Nc3 {[%clk 0:02:56.6]} 4... cxd4 {[%clk 0:02:55.8]} 5. Nxd4 {[%clk
0:02:56.6]} 5... a6 {[%clk 0:02:56.3]} 6. Be2 {[%clk 0:02:50.3]} 6... e5 {[%clk
0:02:55.5]} 7. Nb3 {[%clk 0:02:50.5]} 7... Be7 {[%clk 0:02:55.5]} 8. O-O {[%clk
0:02:48.8]} 8... O-O {[%clk 0:02:56]} 9. Re1 {[%clk 0:02:45.1]} 9... Be6 {[%clk
0:02:49.9]} 10. Bf3 {[%clk 0:02:44.7]} 10... Nbd7 {[%clk 0:02:40.9]} 11. Nd2
{[%clk 0:02:42.9]} 11... Rc8 {[%clk 0:02:40.2]} 12. Nf1 {[%clk 0:02:42.3]} 12...
b5 {[%clk 0:02:39.9]} 13. Ne3 {[%clk 0:02:42]} 13... Nb6 {[%clk 0:02:40]} 14. a3
{[%clk 0:02:37.5]} 14... Qc7 {[%clk 0:02:33.1]} 15. Bd2 {[%clk 0:02:24.1]} 15...
Rfd8 {[%clk 0:02:32.8]} 16. Ncd5 {[%clk 0:01:58.5]} 16... Nfxd5 {[%clk
0:02:28.6]} 17. exd5 {[%clk 0:01:57.2]} 17... Bd7 {[%clk 0:02:28.2]} 18. Ba5
{[%clk 0:01:57.2]} 18... f5 {[%clk 0:02:22.9]} 19. Rc1 {[%clk 0:01:51.6]} 19...
e4 {[%clk 0:02:07.1]} 20. Be2 {[%clk 0:01:49.2]} 20... Bf6 {[%clk 0:02:06]} 21.
c4 {[%clk 0:01:44.3]} 21... Qa7 {[%clk 0:01:27.1]} 22. b4 {[%clk 0:01:35.6]}
22... f4 {[%clk 0:00:28.6]} 23. c5 {[%clk 0:01:28]} 23... fxe3 {[%clk
0:00:26.8]} 24. Bxb6 {[%clk 0:01:19.2]} 24... exf2+ {[%clk 0:00:26.9]} 25. Kxf2
{[%clk 0:01:19.7]} 25... Qb8 {[%clk 0:00:26.8]} 26. Bxd8 {[%clk 0:01:16.8]}
26... Rxd8 {[%clk 0:00:26.8]} 27. Kg1 {[%clk 0:01:14.2]} 27... Rf8 {[%clk
0:00:25.7]} 28. Bg4 {[%clk 0:01:07.6]} 28... Bxg4 {[%clk 0:00:18.5]} 29. Qxg4
{[%clk 0:01:08.5]} 29... dxc5 {[%clk 0:00:18.5]} 30. bxc5 {[%clk 0:01:07.7]}
30... Bb2 {[%clk 0:00:09]} 31. Rc2 {[%clk 0:01:04.9]} 31... Bxa3 {[%clk
0:00:08.9]} 32. Qxe4 {[%clk 0:01:02.6]} 32... b4 {[%clk 0:00:09]} 33. Ra2 {[%clk
0:00:42.4]} 33... h6 {[%clk 0:00:08]} 34. d6 {[%clk 0:00:42.2]} 34... Qb5 {[%clk
0:00:07.9]} 35. Qd5+ {[%clk 0:00:39.7]} 35... Kh8 {[%clk 0:00:08]} 36. d7 {[%clk
0:00:40.3]} 36... Rd8 {[%clk 0:00:07.7]} 37. Rd1 {[%clk 0:00:37.5]} 37... a5
{[%clk 0:00:07.9]} 38. c6 {[%clk 0:00:35.8]} 38... Qb6+ {[%clk 0:00:08.1]} 39.
Kh1 {[%clk 0:00:34.8]} 39... a4 {[%clk 0:00:07.9]} 40. Re2 {[%clk 0:00:33.6]}
40... Qb8 {[%clk 0:00:05.1]} 41. c7 {[%clk 0:00:28.5]} 41... Qxc7 {[%clk
0:00:05.4]} 42. Re8+ {[%clk 0:00:29.1]} 42... Kh7 {[%clk 0:00:05.9]} 43. Qe4+
{[%clk 0:00:28.8]} 43... g6 {[%clk 0:00:05.1]} 44. Qe7# {[%clk 0:00:29.4]} 1-0

[Event "Early-Titled-Tuesday-Blitz-May-14-2024"]
[Site "Chess.com"]
[Date "2024.05.14"]
[Round "9"]
[White "mightysmasher"]
[Black "Yan_Dyomin2010"]
[Result "1/2-1/2"]
[WhiteElo "2566"]
[BlackElo "2683"]
[TimeControl "180+1"]
[EndTime "9:47:08 PDT"]
[Termination "Game drawn by repetition"]

1. e4 {[%clk 0:02:55.2]} 1... c5 {[%clk 0:02:59]} 2. c3 {[%clk 0:02:55]} 2...
Nf6 {[%clk 0:02:58.5]} 3. e5 {[%clk 0:02:53.5]} 3... Nd5 {[%clk 0:02:59]} 4. d4
{[%clk 0:02:50.8]} 4... cxd4 {[%clk 0:02:59.9]} 5. cxd4 {[%clk 0:02:50.5]} 5...
d6 {[%clk 0:02:59.4]} 6. Nf3 {[%clk 0:02:50.7]} 6... Nc6 {[%clk 0:02:58.4]} 7.
Bc4 {[%clk 0:02:50.9]} 7... Nb6 {[%clk 0:02:57.9]} 8. Bb5 {[%clk 0:02:50.5]}
8... dxe5 {[%clk 0:02:58.5]} 9. Nxe5 {[%clk 0:02:50.3]} 9... Bd7 {[%clk
0:02:59.1]} 10. Nxd7 {[%clk 0:02:50.4]} 10... Qxd7 {[%clk 0:03:00]} 11. O-O
{[%clk 0:02:50.4]} 11... e6 {[%clk 0:02:59.5]} 12. Nc3 {[%clk 0:02:50.2]} 12...
Be7 {[%clk 0:02:58.9]} 13. Qg4 {[%clk 0:02:47.4]} 13... Bf6 {[%clk 0:02:58.3]}
14. Be3 {[%clk 0:02:45.7]} 14... O-O {[%clk 0:02:32]} 15. Rad1 {[%clk
0:02:44.5]} 15... Nd5 {[%clk 0:02:28.4]} 16. Ne4 {[%clk 0:02:29.4]} 16... a6
{[%clk 0:02:25.5]} 17. Bxc6 {[%clk 0:02:17.9]} 17... Qxc6 {[%clk 0:02:26.4]} 18.
Bh6 {[%clk 0:02:09]} 18... e5 {[%clk 0:01:48]} 19. Nxf6+ {[%clk 0:01:57]} 19...
Qxf6 {[%clk 0:01:48.9]} 20. dxe5 {[%clk 0:01:57.1]} 20... Qxh6 {[%clk
0:01:47.8]} 21. Rxd5 {[%clk 0:01:56.5]} 21... Rad8 {[%clk 0:01:47.7]} 22. Rd7
{[%clk 0:01:51.7]} 22... Qb6 {[%clk 0:01:42.1]} 23. b3 {[%clk 0:01:40]} 23... h5
{[%clk 0:01:39.8]} 24. Qh3 {[%clk 0:01:32]} 24... Rxd7 {[%clk 0:01:39.7]} 25.
Qxd7 {[%clk 0:01:31.1]} 25... Rd8 {[%clk 0:01:40.6]} 26. Qh3 {[%clk 0:01:21.2]}
26... Rd2 {[%clk 0:01:37.1]} 27. Qxh5 {[%clk 0:00:46.7]} 27... Rxa2 {[%clk
0:01:34.7]} 28. Qf3 {[%clk 0:00:38.6]} 28... Rd2 {[%clk 0:01:27.4]} 29. h3
{[%clk 0:00:31.2]} 29... g6 {[%clk 0:01:24.3]} 30. Rc1 {[%clk 0:00:28.4]} 30...
Rd8 {[%clk 0:01:19.3]} 31. Rc4 {[%clk 0:00:26.3]} 31... Qe6 {[%clk 0:01:12.8]}
32. Rc7 {[%clk 0:00:22.6]} 32... b5 {[%clk 0:01:08.1]} 33. h4 {[%clk 0:00:14.5]}
33... Rd5 {[%clk 0:00:47.6]} 34. h5 {[%clk 0:00:12.9]} 34... Rxe5 {[%clk
0:00:46.4]} 35. hxg6 {[%clk 0:00:08.4]} 35... Re1+ {[%clk 0:00:43.7]} 36. Kh2
{[%clk 0:00:08.3]} 36... Qe5+ {[%clk 0:00:19.7]} 37. Qg3 {[%clk 0:00:07.4]}
37... Qh5+ {[%clk 0:00:17.9]} 38. Qh3 {[%clk 0:00:07.6]} 38... Qe5+ {[%clk
0:00:16.7]} 39. Qg3 {[%clk 0:00:07.6]} 39... Qh5+ {[%clk 0:00:15.8]} 40. Qh3
{[%clk 0:00:07.9]} 40... Qe5+ {[%clk 0:00:14.6]} 41. Qg3 {[%clk 0:00:08.2]}
1/2-1/2

[Event "Early-Titled-Tuesday-Blitz-May-14-2024"]
[Site "Chess.com"]
[Date "2024.05.14"]
[Round "9"]
[White "TregubovP"]
[Black "rodp92"]
[Result "0-1"]
[WhiteElo "2681"]
[BlackElo "2552"]
[TimeControl "180+1"]
[EndTime "9:47:08 PDT"]
[Termination "rodp92 won by resignation"]

1. e4 {[%clk 0:03:00.9]} 1... g6 {[%clk 0:02:59.6]} 2. d4 {[%clk 0:02:59.8]}
2... c6 {[%clk 0:03:00.1]} 3. Nf3 {[%clk 0:03:00.5]} 3... d5 {[%clk 0:03:00.3]}
4. e5 {[%clk 0:02:59.8]} 4... Bg7 {[%clk 0:03:00.3]} 5. h3 {[%clk 0:02:59.1]}
5... Nh6 {[%clk 0:02:58.4]} 6. Bd3 {[%clk 0:02:57.2]} 6... f6 {[%clk 0:02:57.7]}
7. O-O {[%clk 0:02:56.2]} 7... O-O {[%clk 0:02:58.3]} 8. Re1 {[%clk 0:02:55.3]}
8... Bf5 {[%clk 0:02:58.4]} 9. Bxh6 {[%clk 0:02:50.6]} 9... Bxh6 {[%clk
0:02:57.1]} 10. Bxf5 {[%clk 0:02:50]} 10... gxf5 {[%clk 0:02:58]} 11. e6 {[%clk
0:02:44.9]} 11... Qb6 {[%clk 0:02:55.9]} 12. Qd3 {[%clk 0:02:40.3]} 12... Qxb2
{[%clk 0:02:46.9]} 13. Nc3 {[%clk 0:02:39.5]} 13... Qb6 {[%clk 0:02:36.7]} 14.
Qxf5 {[%clk 0:02:38.1]} 14... Na6 {[%clk 0:02:31.5]} 15. Rab1 {[%clk 0:02:27.5]}
15... Qc7 {[%clk 0:02:30.1]} 16. Ne2 {[%clk 0:02:23.5]} 16... Kh8 {[%clk
0:02:24.4]} 17. Nh2 {[%clk 0:02:23.3]} 17... Rg8 {[%clk 0:02:23.8]} 18. Ng4
{[%clk 0:02:20.9]} 18... Rg6 {[%clk 0:02:19.3]} 19. Qh5 {[%clk 0:02:13.4]} 19...
Bd2 {[%clk 0:02:09.9]} 20. Red1 {[%clk 0:02:08.4]} 20... Bg5 {[%clk 0:02:03.5]}
21. h4 {[%clk 0:01:38.5]} 21... Bf4 {[%clk 0:01:59.3]} 22. Rxb7 {[%clk 0:01:31]}
22... Qxb7 {[%clk 0:01:51.3]} 23. Nxf4 {[%clk 0:01:31.5]} 23... Rxg4 {[%clk
0:01:42.5]} 24. Qxg4 {[%clk 0:01:30.6]} 24... Rg8 {[%clk 0:01:41.7]} 25. Qf3
{[%clk 0:01:07.9]} 25... Qb2 {[%clk 0:01:30.4]} 26. c3 {[%clk 0:00:47.3]} 26...
Qc2 {[%clk 0:01:14.1]} 27. Re1 {[%clk 0:00:47.2]} 27... Nc7 {[%clk 0:01:08.8]}
28. Nh5 {[%clk 0:00:45.1]} 28... Ne8 {[%clk 0:01:04.1]} 29. g3 {[%clk
0:00:42.6]} 29... a5 {[%clk 0:00:59.8]} 30. a3 {[%clk 0:00:41.5]} 30... a4
{[%clk 0:00:58.2]} 31. Kg2 {[%clk 0:00:40]} 31... Qb3 {[%clk 0:00:40.4]} 32. Qd3
{[%clk 0:00:30.6]} 32... Qxa3 {[%clk 0:00:38.2]} 33. Rb1 {[%clk 0:00:31]} 33...
Qa2 {[%clk 0:00:31.5]} 34. Rb7 {[%clk 0:00:28]} 34... Qa3 {[%clk 0:00:27]} 35.
Nf4 {[%clk 0:00:21.3]} 35... Qd6 {[%clk 0:00:26]} 36. Qa6 {[%clk 0:00:18.5]}
36... Qxf4 {[%clk 0:00:25.3]} 37. Rxe7 {[%clk 0:00:17.8]} 37... Qe4+ {[%clk
0:00:22.8]} 38. Kg1 {[%clk 0:00:17]} 38... Qe1+ {[%clk 0:00:22.1]} 39. Kg2
{[%clk 0:00:17.5]} 39... Qe4+ {[%clk 0:00:20.8]} 40. Kg1 {[%clk 0:00:17.9]}
40... Ng7 {[%clk 0:00:13.9]} 41. Qxc6 {[%clk 0:00:16.4]} 41... Nf5 {[%clk
0:00:13]} 42. Rf7 {[%clk 0:00:15.8]} 42... Nxg3 {[%clk 0:00:12.5]} 0-1

[Event "Early-Titled-Tuesday-Blitz-May-14-2024"]
[Site "Chess.com"]
[Date "2024.05.14"]
[Round "9"]
[White "Zhigalko_Sergei"]
[Black "Herzog2012"]
[Result "1-0"]
[WhiteElo "2853"]
[BlackElo "2579"]
[TimeControl "180+1"]
[EndTime "9:47:09 PDT"]
[Termination "Zhigalko_Sergei won on time"]

1. e4 {[%clk 0:03:00.9]} 1... c5 {[%clk 0:02:58.1]} 2. Nf3 {[%clk 0:03:00.8]}
2... d6 {[%clk 0:02:55.5]} 3. d4 {[%clk 0:03:00.2]} 3... cxd4 {[%clk 0:02:56.4]}
4. Qxd4 {[%clk 0:03:01.1]} 4... Nc6 {[%clk 0:02:55.8]} 5. Bb5 {[%clk 0:03:00.9]}
5... Qd7 {[%clk 0:02:56.2]} 6. Qd3 {[%clk 0:02:51.8]} 6... Nf6 {[%clk
0:02:37.9]} 7. Nc3 {[%clk 0:02:46.5]} 7... a6 {[%clk 0:02:33.5]} 8. Ba4 {[%clk
0:02:46.3]} 8... b5 {[%clk 0:02:31.2]} 9. Bb3 {[%clk 0:02:45.5]} 9... e6 {[%clk
0:02:28.3]} 10. Bf4 {[%clk 0:02:45.4]} 10... Bb7 {[%clk 0:02:10.7]} 11. O-O-O
{[%clk 0:02:07.2]} 11... Rd8 {[%clk 0:02:04.8]} 12. Qe2 {[%clk 0:01:44.3]} 12...
Qc7 {[%clk 0:01:45.9]} 13. Nd5 {[%clk 0:01:33.3]} 13... exd5 {[%clk 0:01:36.3]}
14. exd5+ {[%clk 0:01:33.5]} 14... Ne7 {[%clk 0:01:31.3]} 15. Rhe1 {[%clk
0:01:29.6]} 15... Kd7 {[%clk 0:01:21.2]} 16. Ng5 {[%clk 0:01:29.4]} 16... Kc8
{[%clk 0:01:05.3]} 17. Nxf7 {[%clk 0:01:14.1]} 17... Nexd5 {[%clk 0:00:26.9]}
18. Qe6+ {[%clk 0:00:39.5]} 18... Qd7 {[%clk 0:00:24.5]} 19. Bg5 {[%clk
0:00:19.2]} 19... Re8 {[%clk 0:00:07.5]} 20. Qxd7+ {[%clk 0:00:15.4]} 20... Kxd7
{[%clk 0:00:07.4]} 21. Nxh8 {[%clk 0:00:06.2]} 21... Be7 {[%clk 0:00:07]} 22.
Nf7 {[%clk 0:00:03.5]} 22... Rf8 {[%clk 0:00:03.8]} 23. Bxf6 {[%clk 0:00:04.1]}
23... Nxf6 {[%clk 0:00:02.3]} 24. Ne5+ {[%clk 0:00:04.3]} 24... Kc7 {[%clk
0:00:02.3]} 25. Nd3 {[%clk 0:00:04.2]} 25... Bd8 {[%clk 0:00:02.1]} 26. Nf4
{[%clk 0:00:04.3]} 26... Rh8 {[%clk 0:00:01.5]} 27. Ne6+ {[%clk 0:00:04.8]}
27... Kd7 {[%clk 0:00:02.1]} 28. f3 {[%clk 0:00:04.8]} 28... Bb6 {[%clk
0:00:01.7]} 29. Nxg7 {[%clk 0:00:05]} 29... d5 {[%clk 0:00:01.7]} 30. Nf5 {[%clk
0:00:05]} 30... Rg8 {[%clk 0:00:01.6]} 31. Re2 {[%clk 0:00:05.1]} 31... Kc8
{[%clk 0:00:01.3]} 32. Ne7+ {[%clk 0:00:04.9]} 32... Kd7 {[%clk 0:00:01.1]} 33.
Nxg8 {[%clk 0:00:05.8]} 33... Nxg8 {[%clk 0:00:01.3]} 34. Bxd5 {[%clk
0:00:06.5]} 34... Bxd5 {[%clk 0:00:01.2]} 35. Rxd5+ {[%clk 0:00:07.4]} 35... Kc6
{[%clk 0:00:01.7]} 36. Rf5 {[%clk 0:00:07.5]} 1-0

[Event "Early-Titled-Tuesday-Blitz-May-14-2024"]
[Site "Chess.com"]
[Date "2024.05.14"]
[Round "9"]
[White "Sosat98"]
[Black "NelsonLinda"]
[Result "1-0"]
[WhiteElo "2756"]
[BlackElo "2617"]
[TimeControl "180+1"]
[EndTime "9:47:10 PDT"]
[Termination "Sosat98 won on time"]

1. d4 {[%clk 0:03:00.9]} 1... Nf6 {[%clk 0:02:52.5]} 2. Nf3 {[%clk 0:03:01.4]}
2... g6 {[%clk 0:02:50.7]} 3. Bg5 {[%clk 0:03:02]} 3... Bg7 {[%clk 0:02:50.2]}
4. Nbd2 {[%clk 0:03:02.5]} 4... d5 {[%clk 0:02:44.3]} 5. Bxf6 {[%clk 0:02:57.6]}
5... Bxf6 {[%clk 0:02:43.2]} 6. e4 {[%clk 0:02:54.9]} 6... dxe4 {[%clk
0:02:42.2]} 7. Nxe4 {[%clk 0:02:55.8]} 7... Bg7 {[%clk 0:02:40.5]} 8. Bc4 {[%clk
0:02:48.7]} 8... O-O {[%clk 0:02:39.1]} 9. h4 {[%clk 0:02:43.1]} 9... Bg4 {[%clk
0:02:07.2]} 10. c3 {[%clk 0:02:42.8]} 10... Nd7 {[%clk 0:02:02.9]} 11. h5 {[%clk
0:02:40.9]} 11... gxh5 {[%clk 0:02:02.8]} 12. Neg5 {[%clk 0:02:24.9]} 12... h6
{[%clk 0:01:37.1]} 13. Qd3 {[%clk 0:01:23.9]} 13... Nf6 {[%clk 0:01:19.8]} 14.
Nxf7 {[%clk 0:01:22.6]} 14... Rxf7 {[%clk 0:01:18.4]} 15. Ne5 {[%clk 0:01:17.8]}
15... e6 {[%clk 0:01:15.6]} 16. Nxf7 {[%clk 0:01:18.2]} 16... Kxf7 {[%clk
0:01:12.8]} 17. f3 {[%clk 0:01:18.6]} 17... b5 {[%clk 0:00:58.5]} 18. Bb3 {[%clk
0:01:17.4]} 18... c5 {[%clk 0:00:58.8]} 19. Qxb5 {[%clk 0:01:01.8]} 19... Bf5
{[%clk 0:00:55.9]} 20. Qxc5 {[%clk 0:01:02.3]} 20... Kg6 {[%clk 0:00:46.5]} 21.
O-O-O {[%clk 0:00:58.3]} 21... a5 {[%clk 0:00:34.2]} 22. g4 {[%clk 0:00:53.8]}
22... hxg4 {[%clk 0:00:33.8]} 23. fxg4 {[%clk 0:00:54.7]} 23... Bxg4 {[%clk
0:00:32.5]} 24. Rdg1 {[%clk 0:00:52.7]} 24... Qb8 {[%clk 0:00:06.8]} 25. Qe5
{[%clk 0:00:48.8]} 25... h5 {[%clk 0:00:04.9]} 26. Bxe6 {[%clk 0:00:18.8]} 26...
Qxe5 {[%clk 0:00:03]} 27. dxe5 {[%clk 0:00:19.7]} 27... Bh6+ {[%clk 0:00:02.5]}
28. Kb1 {[%clk 0:00:18.5]} 28... Ne4 {[%clk 0:00:02.6]} 29. Bxg4 {[%clk
0:00:18.5]} 29... hxg4 {[%clk 0:00:02.6]} 30. Rxg4+ {[%clk 0:00:18.5]} 30... Ng5
{[%clk 0:00:03.2]} 31. Ra4 {[%clk 0:00:15.8]} 31... Bg7 {[%clk 0:00:03.6]} 32.
Re1 {[%clk 0:00:12.7]} 32... Kf5 {[%clk 0:00:04]} 33. Rf1+ {[%clk 0:00:05.7]}
33... Kxe5 {[%clk 0:00:03]} 34. Rg4 {[%clk 0:00:06.2]} 34... Bf6 {[%clk
0:00:03.4]} 35. Rgf4 {[%clk 0:00:04.9]} 35... Ra6 {[%clk 0:00:03.2]} 36. Rf5+
{[%clk 0:00:05.2]} 1-0

[Event "Early-Titled-Tuesday-Blitz-May-14-2024"]
[Site "Chess.com"]
[Date "2024.05.14"]
[Round "9"]
[White "AttilaTurzo"]
[Black "Louis-Paulsen-Fan"]
[Result "1-0"]
[WhiteElo "2459"]
[BlackElo "2330"]
[TimeControl "180+1"]
[EndTime "9:47:10 PDT"]
[Termination "AttilaTurzo won by resignation"]

1. d4 {[%clk 0:02:52.1]} 1... d5 {[%clk 0:02:59.6]} 2. Nc3 {[%clk 0:02:51.9]}
2... Nf6 {[%clk 0:02:56.5]} 3. Bf4 {[%clk 0:02:51.1]} 3... Bf5 {[%clk
0:02:52.2]} 4. Nb5 {[%clk 0:02:47.5]} 4... Na6 {[%clk 0:02:52]} 5. e3 {[%clk
0:02:46.8]} 5... e6 {[%clk 0:02:50.6]} 6. Nf3 {[%clk 0:02:45.8]} 6... c6 {[%clk
0:02:49.7]} 7. Nc3 {[%clk 0:02:41.9]} 7... Bd6 {[%clk 0:02:48.6]} 8. Bxd6 {[%clk
0:02:40.6]} 8... Qxd6 {[%clk 0:02:48.2]} 9. Bxa6 {[%clk 0:02:41.2]} 9... bxa6
{[%clk 0:02:47.7]} 10. Na4 {[%clk 0:02:40.3]} 10... Nd7 {[%clk 0:02:45.9]} 11.
O-O {[%clk 0:02:25.8]} 11... Bg4 {[%clk 0:02:45.1]} 12. h3 {[%clk 0:02:24.3]}
12... Bh5 {[%clk 0:02:44.7]} 13. c4 {[%clk 0:02:15.8]} 13... e5 {[%clk
0:02:38.9]} 14. g4 {[%clk 0:02:09.7]} 14... Bg6 {[%clk 0:02:35.2]} 15. cxd5
{[%clk 0:01:59.4]} 15... cxd5 {[%clk 0:02:24.1]} 16. Nxe5 {[%clk 0:01:56.5]}
16... Nxe5 {[%clk 0:02:24.1]} 17. dxe5 {[%clk 0:01:57.4]} 17... Qxe5 {[%clk
0:02:24.6]} 18. Qd4 {[%clk 0:01:56.1]} 18... f6 {[%clk 0:01:51.1]} 19. Rfd1
{[%clk 0:01:44.5]} 19... Rd8 {[%clk 0:01:42.7]} 20. Qxa7 {[%clk 0:01:33.4]}
20... O-O {[%clk 0:01:35.3]} 21. Qd4 {[%clk 0:01:26]} 21... Qg5 {[%clk
0:01:31.3]} 22. Qf4 {[%clk 0:01:22.6]} 22... Qh4 {[%clk 0:01:28.3]} 23. Qg3
{[%clk 0:01:21.7]} 23... Qxg3+ {[%clk 0:00:58.7]} 24. fxg3 {[%clk 0:01:21.5]}
24... Rfe8 {[%clk 0:00:59.2]} 25. Kf2 {[%clk 0:01:21.3]} 25... Re4 {[%clk
0:00:49.4]} 26. Rd4 {[%clk 0:01:18.4]} 26... Rc8 {[%clk 0:00:35.1]} 27. Nc3
{[%clk 0:01:14]} 27... Rxd4 {[%clk 0:00:24.8]} 28. exd4 {[%clk 0:01:14.9]} 28...
Rb8 {[%clk 0:00:25]} 29. b3 {[%clk 0:01:12.5]} 29... Rc8 {[%clk 0:00:25.3]} 30.
Rc1 {[%clk 0:01:10.5]} 30... Kf7 {[%clk 0:00:21.3]} 31. Ne2 {[%clk 0:01:07.9]}
31... Rxc1 {[%clk 0:00:19.1]} 32. Nxc1 {[%clk 0:01:07.7]} 32... Ke6 {[%clk
0:00:19.7]} 33. Ke3 {[%clk 0:01:02.6]} 33... Kd6 {[%clk 0:00:19.6]} 34. Nd3
{[%clk 0:01:00.5]} 34... a5 {[%clk 0:00:14.1]} 35. Nc5 {[%clk 0:00:56.7]} 35...
Kc6 {[%clk 0:00:13.6]} 36. Kd2 {[%clk 0:00:52.1]} 36... Kb5 {[%clk 0:00:11]} 37.
a3 {[%clk 0:00:51.8]} 37... h5 {[%clk 0:00:07.2]} 38. gxh5 {[%clk 0:00:48.7]}
38... Bxh5 {[%clk 0:00:08.1]} 39. h4 {[%clk 0:00:48.3]} 39... g5 {[%clk
0:00:07.3]} 40. hxg5 {[%clk 0:00:47.9]} 40... fxg5 {[%clk 0:00:08.2]} 41. Ne6
{[%clk 0:00:46]} 41... g4 {[%clk 0:00:08.2]} 42. Nf4 {[%clk 0:00:44.8]} 42...
Bf7 {[%clk 0:00:08.1]} 43. Kc3 {[%clk 0:00:45.1]} 43... Bg8 {[%clk 0:00:06.5]}
44. Nd3 {[%clk 0:00:42.8]} 44... Be6 {[%clk 0:00:05.1]} 45. a4+ {[%clk
0:00:40.4]} 45... Kb6 {[%clk 0:00:03.7]} 46. b4 {[%clk 0:00:40.3]} 46... axb4+
{[%clk 0:00:01.6]} 47. Kxb4 {[%clk 0:00:40.4]} 47... Kc6 {[%clk 0:00:00.7]} 48.
a5 {[%clk 0:00:39.7]} 48... Bc8 {[%clk 0:00:00.4]} 49. Ne5+ {[%clk 0:00:39.2]}
49... Kd6 {[%clk 0:00:00.4]} 50. Kb5 {[%clk 0:00:39.4]} 50... Be6 {[%clk
0:00:00.2]} 51. Kb6 {[%clk 0:00:38.1]} 1-0

[Event "Early-Titled-Tuesday-Blitz-May-14-2024"]
[Site "Chess.com"]
[Date "2024.05.14"]
[Round "9"]
[White "littlepinkyboy"]
[Black "viktorgen2021"]
[Result "0-1"]
[WhiteElo "2677"]
[BlackElo "2533"]
[TimeControl "180+1"]
[EndTime "9:47:11 PDT"]
[Termination "viktorgen2021 won by resignation"]

1. e4 {[%clk 0:03:00.9]} 1... g6 {[%clk 0:02:57.9]} 2. d4 {[%clk 0:02:59.3]}
2... Bg7 {[%clk 0:02:58]} 3. Nf3 {[%clk 0:02:59.8]} 3... d6 {[%clk 0:02:58.3]}
4. h3 {[%clk 0:02:59.1]} 4... Nf6 {[%clk 0:02:57.8]} 5. Nc3 {[%clk 0:02:59.7]}
5... O-O {[%clk 0:02:57.9]} 6. Bc4 {[%clk 0:03:00.1]} 6... c6 {[%clk 0:02:57.2]}
7. O-O {[%clk 0:02:57.8]} 7... b5 {[%clk 0:02:55.4]} 8. Bd3 {[%clk 0:02:58.3]}
8... b4 {[%clk 0:02:52.7]} 9. Ne2 {[%clk 0:02:56.7]} 9... Nbd7 {[%clk
0:02:52.9]} 10. e5 {[%clk 0:02:47.2]} 10... Nd5 {[%clk 0:02:49]} 11. exd6 {[%clk
0:02:40.9]} 11... exd6 {[%clk 0:02:49]} 12. c4 {[%clk 0:02:33.8]} 12... bxc3
{[%clk 0:02:49.1]} 13. bxc3 {[%clk 0:02:32.8]} 13... a5 {[%clk 0:02:45.3]} 14.
Qc2 {[%clk 0:02:20]} 14... Ba6 {[%clk 0:02:42]} 15. Ng3 {[%clk 0:02:15.4]} 15...
N7b6 {[%clk 0:02:26.5]} 16. Bxa6 {[%clk 0:02:01.5]} 16... Rxa6 {[%clk
0:02:26.4]} 17. Qd3 {[%clk 0:02:02.3]} 17... Ra7 {[%clk 0:02:24.5]} 18. Bg5
{[%clk 0:02:02.1]} 18... Qc8 {[%clk 0:02:21.3]} 19. Rfe1 {[%clk 0:01:59.1]}
19... c5 {[%clk 0:02:16.5]} 20. Rab1 {[%clk 0:01:55.2]} 20... c4 {[%clk
0:02:09.6]} 21. Qc2 {[%clk 0:01:51.5]} 21... Qc6 {[%clk 0:02:08.9]} 22. Bd2
{[%clk 0:01:25.5]} 22... Raa8 {[%clk 0:02:03]} 23. Ne4 {[%clk 0:01:23.5]} 23...
Rfb8 {[%clk 0:02:01.3]} 24. h4 {[%clk 0:01:19.9]} 24... Qa4 {[%clk 0:01:57.9]}
25. Qc1 {[%clk 0:01:18.7]} 25... Qd7 {[%clk 0:01:50]} 26. h5 {[%clk 0:01:15.7]}
26... Re8 {[%clk 0:01:48.9]} 27. Bh6 {[%clk 0:01:11.2]} 27... Na4 {[%clk
0:01:36.1]} 28. Bxg7 {[%clk 0:01:03.3]} 28... Kxg7 {[%clk 0:01:35.9]} 29. h6+
{[%clk 0:01:02.9]} 29... Kg8 {[%clk 0:01:12.9]} 30. Qg5 {[%clk 0:01:02.6]} 30...
Qf5 {[%clk 0:01:07.7]} 31. Qxf5 {[%clk 0:00:54]} 31... gxf5 {[%clk 0:01:06]} 32.
Nxd6 {[%clk 0:00:54.2]} 32... Rxe1+ {[%clk 0:01:05.5]} 33. Rxe1 {[%clk
0:00:55.1]} 33... Naxc3 {[%clk 0:01:05]} 34. Nxf5 {[%clk 0:00:51.6]} 34... Nxa2
{[%clk 0:01:04.7]} 35. Ne5 {[%clk 0:00:36.9]} 35... c3 {[%clk 0:01:02.2]} 36.
Nc6 {[%clk 0:00:31.3]} 36... c2 {[%clk 0:00:56.5]} 37. Ne3 {[%clk 0:00:08]}
37... Nxe3 {[%clk 0:00:52.4]} 38. fxe3 {[%clk 0:00:08.9]} 38... c1=Q {[%clk
0:00:52.4]} 39. Rxc1 {[%clk 0:00:08.9]} 39... Nxc1 {[%clk 0:00:52.6]} 40. d5
{[%clk 0:00:09.7]} 40... Nd3 {[%clk 0:00:50.5]} 41. d6 {[%clk 0:00:04.6]} 41...
Nc5 {[%clk 0:00:50.7]} 42. Kf1 {[%clk 0:00:03.9]} 42... a4 {[%clk 0:00:50.7]}
43. Nb4 {[%clk 0:00:04.7]} 43... a3 {[%clk 0:00:50.7]} 44. Na2 {[%clk
0:00:05.4]} 44... Kf8 {[%clk 0:00:50.4]} 45. Ke1 {[%clk 0:00:04.4]} 45... Ke8
{[%clk 0:00:50.9]} 46. Kd1 {[%clk 0:00:04.8]} 46... Kd7 {[%clk 0:00:51.8]} 47.
Kc2 {[%clk 0:00:05.5]} 47... Kxd6 {[%clk 0:00:52.5]} 48. Kc3 {[%clk 0:00:05.1]}
48... Ra6 {[%clk 0:00:50.8]} 49. Kc4 {[%clk 0:00:04.3]} 49... Nd7 {[%clk
0:00:49.1]} 50. Kb4 {[%clk 0:00:02.3]} 50... Ke5 {[%clk 0:00:48.8]} 51. Kb5
{[%clk 0:00:02.5]} 51... Rxh6 {[%clk 0:00:48.5]} 52. Kb4 {[%clk 0:00:02.3]}
52... Rg6 {[%clk 0:00:49.1]} 53. Kxa3 {[%clk 0:00:02.3]} 53... Rxg2 {[%clk
0:00:49.7]} 54. Nb4 {[%clk 0:00:02.9]} 54... h5 {[%clk 0:00:49.9]} 0-1